bitfinex-derivatives/quotes_SOLF0:USTF0_20250110
["timestamp","ask_amount","ask_price","bid_price","bid_amount"]
[1736519701887,31.91864484,187.74,187.6,3.2146]
[1736519702081,6.02,187.76,187.6,1.6233]
[1736519702082,31.91864484,187.71,187.6,1.6233]
[1736519702283,6.02,187.76,187.6,1.6233]
[1736519702284,31.91864484,187.74,187.6,1.6233]
[1736519702491,31.91864484,187.71,187.6,1.6233]
[1736519702900,31.91864484,187.71,187.57,1.5731]
[1736519703102,2.6648,187.64,187.59,2.6654]
[1736519703309,31.91864484,187.65,187.47,57.79238591]
[1736519703504,2.6657,187.58,187.51,2.6666]
[1736519703713,31.91864484,187.62,187.47,3.2143]
[1736519704314,31.91864484,187.65,187.49,31.91864484]
[1736519704521,6.06,187.64,187.49,31.91864484]
[1736519704716,8.7248,187.64,187.52,31.91864484]
[1736519704917,31.91864484,187.71,187.55,31.91864484]
[1736519705105,6.08,187.72,187.58,31.91864484]
[1736519705309,2.6639,187.7,187.59,3.3103]
[1736519705716,31.91864484,187.77,187.62,31.91864484]
[1736519705917,6.06,187.79,187.62,31.91864484]
[1736519706312,2.6637,187.72,187.65,2.6645]
[1736519706612,31.91864484,187.71,187.56,31.91864484]
[1736519706813,31.91864484,187.68,187.53,31.91864484]
[1736519707114,31.91864484,187.65,187.5,7.19196691]
[1736519707312,31.91864484,187.62,187.5,7.19196691]
[1736519707720,31.91864484,187.62,187.48,4.9571]
[1736519708315,31.91864484,187.56,187.41,31.91864484]
[1736519708512,2.6665,187.52,187.43,2.6676]
[1736519708713,37.97864484,187.56,187.41,3.1171]
[1736519709016,2.6668,187.5,187.42,2.6678]
[1736519709216,37.97864484,187.56,187.41,35.03574484]
[1736519709916,31.91864484,187.53,187.41,3.1171]
[1736519710116,31.91864484,187.5,187.32,31.91864484]
[1736519710523,31.91864484,187.53,187.35,31.91864484]
[1736519710820,31.91864484,187.5,187.35,31.91864484]
[1736519711119,6.06,187.53,187.41,31.91864484]
[1736519711311,6.06,187.53,187.42,1.6168]
[1736519711514,2.6666,187.51,187.44,2.6675]
[1736519711714,6.06,187.53,187.42,3.1259]
[1736519712009,37.97864484,187.53,187.35,31.91864484]
[1736519712218,2.6674,187.46,187.35,31.91864484]
[1736519712420,31.91864484,187.53,187.35,31.91864484]
[1736519712617,6.06,187.52,187.38,31.91864484]
[1736519713018,31.91864484,187.5,187.31,31.91864484]
[1736519713418,190.0,187.64,187.37,31.91864484]
[1736519713619,31.91864484,187.55,187.37,31.91864484]
[1736519713920,6.06,187.54,187.37,31.91864484]
[1736519714419,2.667,187.48,187.42,2.6679]
[1736519714720,190.0,187.64,187.31,31.91864484]
[1736519714721,6.06,187.57,187.43,31.91864484]
[1736519714911,2.666,187.56,187.48,2.6669]
[1736519715110,2.666,187.56,187.44,4.8182]
[1736519715311,37.97864484,187.58,187.44,4.8182]
[1736519715512,31.91864484,187.55,187.44,5.9034]
[1736519715724,37.97864484,187.58,187.44,3.2358]
[1736519715915,2.666,187.56,187.5,2.6667]
[1736519716117,31.91864484,187.65,187.46,31.91864484]
[1736519716321,0.86576707,187.64,187.46,31.91864484]
[1736519716518,2.6658,187.57,187.5,2.6667]
[1736519716715,2.6658,187.57,187.45,1.5824]
[1736519716918,31.91864484,187.53,187.44,3.2358]
[1736519717126,31.91864484,187.53,187.38,1.6656]
[1736519717416,31.91864484,187.5,187.38,4.9113]
[1736519718123,31.91864484,187.47,187.38,3.2457]
[1736519718620,31.91864484,187.5,187.42,2.6678]
[1736519719120,31.91864484,187.53,187.45,2.6673]
[1736519719320,31.91864484,187.53,187.38,3.2457]
[1736519719724,31.91864484,187.5,187.38,3.2457]
[1736519719923,31.91864484,187.47,187.38,3.2457]
[1736519720328,34.58584484,187.47,187.38,3.2457]
[1736519720513,31.91864484,187.5,187.38,3.2457]
[1736519720718,2.6669,187.49,187.44,2.6676]
[1736519721018,31.91864484,187.53,187.38,3.2457]
[1736519721426,2.6672,187.47,187.38,3.2457]
[1736519721625,31.91864484,187.5,187.38,3.2457]
[1736519722120,2.6674,187.46,187.4,2.6682]
[1736519722319,31.91864484,187.5,187.4,2.6682]
[1736519722515,31.91864484,187.5,187.38,3.2457]
[1736519723617,2.6672,187.48,187.42,2.6678]
[1736519723816,6.1,187.55,187.38,3.2457]
[1736519723817,31.91864484,187.47,187.38,3.2457]
[1736519724325,31.91864484,187.47,187.32,33.58424484]
[1736519724625,31.91864484,187.47,187.33,3.1742]
[1736519725524,31.91864484,187.47,187.39,2.6682]
[1736519725831,6.06,187.46,187.33,3.1742]
[1736519726425,31.91864484,187.44,187.33,3.1742]
[1736519726628,2.6678,187.43,187.39,2.6683]
[1736519726823,31.91864484,187.44,187.33,3.1742]
[1736519727025,31.91864484,187.44,187.26,115.05864484]
[1736519727221,31.91864484,187.38,187.24,4.7952]
[1736519727421,31.91864484,187.32,187.17,31.91864484]
[1736519727625,2.6696,187.3,187.25,2.6702]
[1736519727822,31.91864484,187.32,187.19,1.5666]
[1736519728020,31.91864484,187.35,187.19,33.48524484]
[1736519728220,2.6692,187.33,187.19,33.48524484]
[1736519728428,37.97864484,187.38,187.22,31.91864484]
[1736519729031,31.91864484,187.35,187.19,33.48524484]
[1736519729330,2.6695,187.31,187.25,2.6702]
[1736519729526,31.91864484,187.32,187.19,1.5666]
[1736519729830,2.6703,187.25,187.2,2.6709]
[1736519730430,37.97864484,187.26,187.16,1.5794]
[1736519730824,2.6709,187.22,187.15,2.6716]
[1736519731028,31.91864484,187.23,187.15,2.6716]
[1736519731530,2.6712,187.19,187.13,2.6719]
[1736519731731,31.91864484,187.23,187.11,1.6712]
[1736519731929,2.6707,187.22,187.14,2.6718]
[1736519732232,37.97864484,187.26,187.11,1.6712]
[1736519732427,31.91864484,187.26,187.11,1.6712]
[1736519732632,31.91864484,187.26,187.23,2.6706]
[1736519732829,31.91864484,187.26,187.11,1.6712]
[1736519733127,6.04,187.28,187.24,2.6704]
[1736519733327,37.95864484,187.32,187.16,31.91864484]
[1736519733527,31.91864484,187.29,187.13,31.91864484]
[1736519733927,31.91864484,187.26,187.11,1.6712]
[1736519734221,2.671,187.21,187.14,2.6718]
[1736519734426,6.06,187.21,187.11,1.6712]
[1736519735634,2.67,187.27,187.22,2.6707]
[1736519735821,37.95864484,187.29,187.13,31.91864484]
[1736519736020,37.95864484,187.29,187.11,1.6712]
[1736519736021,31.91864484,187.26,187.11,1.6712]
[1736519736427,37.95864484,187.29,187.13,31.91864484]
[1736519736628,2.6696,187.3,187.24,2.6703]
[1736519736829,2.6696,187.3,187.17,1.6099]
[1736519737132,2.6696,187.3,187.24,2.6703]
[1736519737325,2.6699,187.28,187.17,1.6099]
[1736519737528,31.91864484,187.32,187.17,1.6099]
[1736519737728,6.04,187.33,187.18,31.91864484]
[1736519737927,31.91864484,187.32,187.19,1.6314]
[1736519738132,31.91864484,187.32,187.21,2.6708]
[1736519738433,2.6702,187.26,187.21,2.6708]
[1736519738628,31.91864484,187.29,187.19,1.6314]
[1736519738929,2.6702,187.26,187.19,1.6314]
[1736519739129,31.91864484,187.26,187.11,33.58984484]
[1736519739331,31.91864484,187.23,187.12,3.2628]
[1736519740330,6.04,187.24,187.12,3.2628]
[1736519740838,8.7105,187.24,187.12,3.2628]
[1736519741136,6.04,187.24,187.14,31.91864484]
[1736519741328,6.04,187.24,187.17,2.6715]
[1736519741530,6.04,187.24,187.12,3.2628]
[1736519741931,31.91864484,187.23,187.12,3.2628]
[1736519742435,2.6709,187.21,187.17,2.6715]
[1736519742626,31.91864484,187.26,187.12,3.2628]
[1736519742934,6.02,187.27,187.12,3.2628]
[1736519743136,8.6901,187.27,187.22,2.6707]
[1736519743440,31.91864484,187.29,187.14,31.91864484]
[1736519743629,6.02,187.3,187.2,2.6709]
[1736519743937,6.02,187.3,187.17,31.91864484]
[1736519744138,2.6699,187.28,187.23,2.6705]
[1736519744439,6.02,187.3,187.14,31.91864484]
[1736519744633,2.6703,187.26,187.21,2.6709]
[1736519744831,31.91864484,187.26,187.12,3.2628]
[1736519745230,31.91864484,187.23,187.12,3.2628]
[1736519745430,31.91864484,187.23,187.12,1.6083]
[1736519745735,31.91864484,187.23,187.11,4.3434]
[1736519745736,2.6716,187.17,187.11,4.3434]
[1736519746033,31.91864484,187.2,187.07,3.0873]
[1736519746229,2.6719,187.14,187.07,4.1834]
[1736519746436,31.91864484,187.17,187.03,7.14403302]
[1736519746635,31.91864484,187.17,187.03,10.26143302]
[1736519746834,2.6718,187.15,187.11,2.6723]
[1736519747035,31.91864484,187.17,187.11,2.6723]
[1736519747335,6.0,187.21,186.97,90.42403302]
[1736519747336,2.673,187.07,186.97,7.14403302]
[1736519747538,31.91864484,187.1,186.97,10.33773302]
[1736519747934,6.0,187.12,186.97,10.33773302]
[1736519748135,6.0,187.12,186.97,42.25637786]
[1736519748330,31.91864484,187.1,186.97,7.14403302]
[1736519748536,31.91864484,187.1,186.97,3.1281]
[1736519749134,6.0,187.12,186.97,35.04674484]
[1736519749441,31.91864484,187.16,187.0,31.91864484]
[1736519750541,31.91864484,187.16,186.97,35.04674484]
[1736519750943,2.6723,187.11,186.97,35.04674484]
[1736519751339,31.91864484,187.13,186.97,35.04674484]
[1736519751646,31.91864484,187.1,186.97,3.1281]
[1736519752744,31.91864484,187.13,186.97,3.1281]
[1736519753840,2.6723,187.12,187.06,2.673]
[1736519754135,5.98,187.18,187.02,31.91864484]
[1736519754442,5.98,187.18,187.09,2.6725]
[1736519754641,5.98,187.18,187.02,31.91864484]
[1736519755542,5.98,187.18,187.05,31.91864484]
[1736519755748,31.91864484,187.2,187.06,1.613]
[1736519756045,2.6714,187.18,187.13,2.672]
[1736519756942,2.6716,187.16,187.11,2.6722]
[1736519757241,5.98,187.24,187.08,31.91864484]
[1736519757437,2.6702,187.26,187.11,31.91864484]
[1736519758037,31.91864484,187.35,187.17,31.91864484]
[1736519758239,31.91864484,187.38,187.23,31.91864484]
[1736519758442,31.91864484,187.41,187.24,1.5165]
[1736519758636,31.91864484,187.41,187.26,31.91864484]
[1736519758840,5.98,187.43,187.26,31.91864484]
[1736519759139,31.91864484,187.41,187.26,31.91864484]
[1736519759537,34.58684484,187.41,187.35,2.6689]
[1736519759744,5.98,187.43,187.26,31.91864484]
[1736519760136,5.98,187.43,187.33,2.6691]
[1736519760137,2.668,187.41,187.33,2.6691]
[1736519760338,31.91864484,187.38,187.24,1.5165]
[1736519760544,31.91864484,187.35,187.24,1.5165]
[1736519760840,31.91864484,187.32,187.2,7.14403302]
[1736519761047,31.91864484,187.32,187.21,7.14403302]
[1736519761442,31.91864484,187.29,187.21,7.14403302]
[1736519761744,31.91864484,187.32,187.21,7.14403302]
[1736519761943,2.6694,187.32,187.18,4.7089]
[1736519762143,6.0,187.33,187.2,31.91864484]
[1736519762339,2.6683,187.4,187.32,2.6692]
[1736519762545,31.91864484,187.44,187.26,31.91864484]
[1736519762747,31.91864484,187.44,187.25,5.98]
[1736519762748,31.91864484,187.44,187.29,31.91864484]
[1736519762949,31.91864484,187.44,187.3,4.6666]
[1736519763145,31.91864484,187.56,187.3,4.6666]
[1736519763345,31.91864484,187.47,187.3,4.6666]
[1736519763540,31.91864484,187.47,187.32,31.91864484]
[1736519763739,31.91864484,187.5,187.35,31.91864484]
[1736519763947,34.58494484,187.53,187.47,2.6671]
[1736519764245,31.91864484,187.53,187.38,31.91864484]
[1736519764746,31.91864484,187.56,187.41,31.91864484]
[1736519764944,31.91864484,187.56,187.36,5.98]
[1736519764945,31.91864484,187.62,187.44,31.91864484]
[1736519765152,34.58374484,187.62,187.55,2.666]
[1736519765448,31.91864484,187.62,187.47,31.91864484]
[1736519765644,2.6655,187.59,187.47,31.91864484]
[1736519765849,2.6655,187.59,187.45,5.98]
[1736519766253,31.91864484,187.62,187.45,5.98]
[1736519766654,31.91864484,187.59,187.44,31.91864484]
[1736519766846,5.96,187.58,187.42,4.7211]
[1736519767043,31.91864484,187.53,187.42,4.7211]
[1736519767248,2.6672,187.47,187.35,143.83477692]
[1736519767554,31.91864484,187.47,187.35,33.35963208]
[1736519767749,31.91864484,187.44,187.27,7.14403302]
[1736519767949,31.91864484,187.41,187.27,7.14403302]
[1736519768146,5.98,187.41,187.29,31.91864484]
[1736519768353,2.6678,187.43,187.29,31.91864484]
[1736519768552,5.98,187.46,187.29,31.91864484]
[1736519768745,31.91864484,187.44,187.34,2.669]
[1736519768953,2.6681,187.41,187.29,31.91864484]
[1736519769253,31.91864484,187.41,187.31,2.6693]
[1736519769449,31.91864484,187.38,187.26,3.2653]
[1736519769754,31.91864484,187.38,187.26,1.5913]
[1736519769956,2.6693,187.33,187.21,86.4405]
[1736519770145,37.89864484,187.35,187.21,86.4405]
[1736519770346,31.91864484,187.32,187.23,2.6706]
[1736519770555,31.91864484,187.29,187.17,1.645]
[1736519770851,31.91864484,187.26,187.15,2.6716]
[1736519771157,31.91864484,187.26,187.13,1.5084]
[1736519771158,37.87864484,187.26,187.13,1.5084]
[1736519771950,37.87864484,187.26,187.18,2.6713]
[1736519772357,31.91864484,187.23,187.09,3.2771]
[1736519772654,37.87864484,187.26,187.11,31.91864484]
[1736519772850,37.87864484,187.26,187.09,3.2771]
[1736519773251,2.6703,187.25,187.11,31.91864484]
[1736519773655,5.96,187.26,187.2,2.671]
[1736519773858,2.6695,187.31,187.14,31.91864484]
[1736519774058,37.87864484,187.32,187.17,31.91864484]
[1736519774450,31.91864484,187.35,187.2,31.91864484]
[1736519774757,31.91864484,187.41,187.26,31.91864484]
[1736519774956,31.91864484,187.44,187.29,31.91864484]
[1736519775459,37.87864484,187.47,187.29,31.91864484]
[1736519775760,5.96,187.48,187.43,2.6677]
[1736519775953,31.91864484,187.53,187.38,31.91864484]
[1736519776260,37.87864484,187.56,187.41,31.91864484]
[1736519776458,31.91864484,187.62,187.44,31.91864484]
[1736519776750,0.86590878,187.61,187.47,31.91864484]
[1736519776950,2.6648,187.64,187.47,31.91864484]
[1736519777253,31.91864484,187.65,187.47,31.91864484]
[1736519777456,0.8657277,187.64,187.47,31.91864484]
[1736519777657,31.91864484,187.65,187.5,31.91864484]
[1736519777852,31.91864484,187.68,187.59,2.6654]
[1736519778048,34.58284484,187.68,187.53,31.91864484]
[1736519778247,31.91864484,187.68,187.53,31.91864484]
[1736519778446,5.96,187.73,187.53,31.91864484]
[1736519778447,31.91864484,187.71,187.53,31.91864484]
[1736519778763,31.91864484,187.71,187.56,31.91864484]
[1736519779057,31.91864484,187.65,187.49,31.91864484]
[1736519779252,6.0,187.64,187.49,31.91864484]
[1736519779658,6.0,187.64,187.55,2.666]
[1736519779951,6.0,187.64,187.49,31.91864484]
[1736519780156,6.0,187.66,187.52,31.91864484]
[1736519780456,2.6636,187.73,187.58,31.91864484]
[1736519780659,2.6636,187.73,187.59,3.0551]
[1736519780850,2.664,187.7,187.59,3.0551]
[1736519781050,31.91864484,187.74,187.59,3.0551]
[1736519781464,31.91864484,187.77,187.61,31.91864484]
[1736519782152,31.91864484,187.74,187.59,3.0551]
[1736519782348,6.0,187.82,187.59,3.0551]
[1736519782349,31.91864484,187.77,187.59,3.0551]
[1736519782754,2.6641,187.69,187.62,2.665]
[1736519782950,31.91864484,187.74,187.59,3.0551]
[1736519783660,6.0,187.73,187.59,3.0551]
[1736519783960,31.91864484,187.68,187.52,31.91864484]
[1736519784456,31.91864484,187.65,187.49,31.91864484]
[1736519784651,31.91864484,187.62,187.48,3.2645]
[1736519784853,37.91864484,187.62,187.48,3.2645]
[1736519785256,31.91864484,187.59,187.48,3.2645]
[1736519785554,2.6661,187.55,187.35,6.02]
[1736519785760,31.91864484,187.56,187.43,1.6613]
[1736519786159,2.6665,187.52,187.44,2.6675]
[1736519786364,31.91864484,187.56,187.43,1.6613]
[1736519786562,31.91864484,187.59,187.43,1.6613]
[1736519786759,2.6661,187.55,187.48,2.667]
[1736519787067,31.91864484,187.59,187.39,1.6014]
[1736519787259,2.6664,187.53,187.46,2.6672]
[1736519787566,31.91864484,187.56,187.4,1.6613]
[1736519787567,31.91864484,187.5,187.4,1.6613]
[1736519788453,2.667,187.49,187.43,2.6677]
[1736519788658,2.667,187.49,187.4,1.6613]
[1736519789558,2.6677,187.44,187.37,2.6685]
[1736519789963,31.91864484,187.47,187.31,3.161]
[1736519790263,31.91864484,187.44,187.31,3.161]
[1736519790655,31.91864484,187.47,187.32,31.91864484]
[1736519791465,31.91864484,187.44,187.31,3.161]
[1736519791865,31.91864484,187.47,187.32,31.91864484]
[1736519792367,31.91864484,187.44,187.31,3.161]
[1736519793064,31.91864484,187.41,187.31,3.161]
[1736519793268,37.89864484,187.41,187.31,3.161]
[1736519793771,31.91864484,187.38,187.2,31.91864484]
[1736519793960,31.91864484,187.38,187.16,83.24]
[1736519793961,31.91864484,187.35,187.18,1.6655]
[1736519794266,31.91864484,187.29,187.17,1.5943]
[1736519794464,2.6708,187.22,187.11,31.91864484]
[1736519794963,5.98,187.25,187.11,31.91864484]
[1736519795167,5.98,187.25,187.14,31.91864484]
[1736519795365,5.98,187.3,187.14,31.91864484]
[1736519795871,5.98,187.3,187.17,31.91864484]
[1736519796868,31.91864484,187.26,187.14,1.6076]
[1736519797162,2.6705,187.24,187.17,2.6715]
[1736519797466,31.91864484,187.26,187.1,1.6655]
[1736519799367,5.98,187.32,187.2,31.91864484]
[1736519799564,31.91864484,187.38,187.2,31.91864484]
[1736519799766,2.669,187.35,187.27,2.6699]
[1736519799966,31.91864484,187.35,187.17,31.91864484]
[1736519800367,31.91864484,187.38,187.2,31.91864484]
[1736519800663,37.91864484,187.38,187.2,31.91864484]
[1736519801463,37.91864484,187.38,187.27,2.6699]
[1736519801464,2.6692,187.33,187.27,2.6699]
[1736519801670,37.91864484,187.38,187.2,31.91864484]
[1736519801968,31.91864484,187.38,187.23,31.91864484]
[1736519802169,31.91864484,187.41,187.24,1.5691]
[1736519802360,31.91864484,187.38,187.25,1.6396]
[1736519802969,31.91864484,187.35,187.24,3.145]
[1736519803366,6.0,187.34,187.18,1.6396]
[1736519803672,31.91864484,187.32,187.18,1.6396]
[1736519803875,2.6697,187.3,187.18,1.6396]
[1736519804075,6.0,187.34,187.2,31.91864484]
[1736519804366,31.91864484,187.38,187.2,31.91864484]
[1736519804766,31.91864484,187.35,187.18,1.6396]
[1736519804965,31.91864484,187.32,187.18,1.6396]
[1736519805171,31.91864484,187.35,187.2,31.91864484]
[1736519805369,31.91864484,187.38,187.2,31.91864484]
[1736519805572,31.91864484,187.35,187.27,2.67]
[1736519805768,31.91864484,187.38,187.24,31.91864484]
[1736519805973,31.91864484,187.38,187.21,31.91864484]
[1736519806467,31.91864484,187.41,187.27,31.91864484]
[1736519806669,2.6683,187.4,187.33,2.6691]
[1736519806967,31.91864484,187.47,187.3,31.91864484]
[1736519807167,2.6673,187.46,187.33,31.91864484]
[1736519807472,31.91864484,187.47,187.33,31.91864484]
[1736519807674,31.91864484,187.47,187.36,2.6687]
[1736519807675,2.6679,187.42,187.36,2.6687]
[1736519807969,31.91864484,187.47,187.31,1.5069]
[1736519808170,31.91864484,187.41,187.31,1.5069]
[1736519808767,6.0,187.49,187.36,2.6687]
[1736519808768,31.91864484,187.44,187.36,2.6687]
[1736519808963,31.91864484,187.44,187.31,1.5069]
[1736519809274,31.91864484,187.47,187.31,1.5069]
[1736519809867,31.91864484,187.47,187.33,31.91864484]
[1736519810470,31.91864484,187.44,187.31,1.5069]
[1736519811071,31.91864484,187.41,187.31,1.5069]
[1736519811272,31.91864484,187.38,187.29,1.5297]
[1736519811668,31.91864484,187.38,187.28,4.1961]
[1736519811669,31.91864484,187.38,187.28,2.6697]
[1736519811974,2.6692,187.33,187.28,2.6697]
[1736519812180,31.91864484,187.38,187.27,2.67]
[1736519812372,2.6693,187.32,187.27,2.67]
[1736519812564,6.0,187.4,187.23,3.0971]
[1736519812565,31.91864484,187.35,187.23,3.0971]
[1736519812765,37.89864484,187.35,187.23,3.0971]
[1736519813074,37.89864484,187.35,187.23,1.5852]
[1736519813264,31.91864484,187.32,187.15,31.91864484]
[1736519813466,31.91864484,187.32,187.15,35.02954484]
[1736519814067,2.67,187.28,187.15,35.02954484]
[1736519814366,31.91864484,187.32,187.21,2.6708]
[1736519814873,31.91864484,187.29,187.15,3.1109]
[1736519815074,31.91864484,187.26,187.15,3.1109]
[1736519815371,37.87864484,187.26,187.19,2.6712]
[1736519815778,37.87864484,187.26,187.15,3.1109]
[1736519816073,37.87864484,187.26,187.17,2.6714]
[1736519816280,2.6711,187.2,187.13,1.5119]
[1736519816481,31.91864484,187.2,187.11,2.6723]
[1736519816679,31.91864484,187.17,187.03,1.5961]
[1736519816974,31.91864484,187.14,186.99,31.91864484]
[1736519817174,31.91864484,187.14,186.98,3.2782]
[1736519817175,5.98,187.13,186.98,4.8743]
[1736519817577,31.91864484,187.11,186.98,4.8743]
[1736519818076,34.59094484,187.11,186.98,4.8743]
[1736519818273,31.91864484,187.11,186.98,4.8743]
[1736519818886,2.6726,187.09,187.02,2.6735]
[1736519819179,31.91864484,187.11,186.98,4.8743]
[1736519819375,31.91864484,187.11,187.0,2.6739]
[1736519819577,31.91864484,187.11,186.98,3.2782]
[1736519819779,31.91864484,187.02,186.84,57.15226416]
[1736519819979,31.91864484,186.99,186.84,57.15226416]
[1736519820585,31.91864484,186.99,186.84,28.57613208]
[1736519820779,2.6745,186.96,186.84,28.57613208]
[1736519820979,31.91864484,186.96,186.84,28.57613208]
[1736519821376,31.91864484,186.9,186.84,28.57613208]
[1736519821580,31.91864484,186.87,186.84,28.57613208]
[1736519821874,31.91864484,186.87,186.75,217.8399431]
[1736519822079,31.91864484,186.87,186.72,40.68007786]
[1736519822282,6.22,186.9,186.72,40.68007786]
[1736519822283,31.91864484,186.84,186.75,2.6774]
[1736519822486,31.91864484,186.84,186.72,7.14403302]
[1736519822983,31.91864484,186.87,186.72,7.14403302]
[1736519823192,38.13864484,186.9,186.72,39.06267786]
[1736519823375,38.13864484,186.9,186.79,2.6768]
[1736519823579,38.13864484,186.9,186.72,31.91864484]
[1736519823779,40.81404484,186.9,186.75,31.91864484]
[1736519823975,40.81404484,186.9,186.82,2.6764]
[1736519824282,31.91864484,186.87,186.72,31.91864484]
[1736519824788,2.677,186.79,186.67,3.2513]
[1736519824987,31.91864484,186.81,186.72,2.6779]
[1736519825177,31.91864484,186.81,186.67,3.2513]
[1736519825381,31.91864484,186.84,186.67,3.2513]
[1736519825586,31.91864484,186.84,186.69,31.91864484]
[1736519825787,31.91864484,186.87,186.72,31.91864484]
[1736519826688,31.91864484,186.87,186.8,2.6767]
[1736519826887,38.13864484,186.9,186.72,31.91864484]
[1736519827091,31.91864484,186.87,186.72,31.91864484]
[1736519827480,31.91864484,186.87,186.69,31.91864484]
[1736519827885,31.91864484,186.81,186.67,3.2513]
[1736519828184,31.91864484,186.72,186.55,31.91864484]
[1736519828388,31.91864484,186.72,186.56,0.98462021]
[1736519828389,6.36,186.71,186.56,0.98462021]
[1736519828589,6.36,186.71,186.58,31.91864484]
[1736519829886,6.36,186.71,186.62,2.6792]
[1736519830087,31.91864484,186.68,186.53,4.8845]
[1736519830391,2.6789,186.66,186.57,2.6799]
[1736519830590,31.91864484,186.68,186.54,0.98477939]
[1736519830884,34.59714484,186.68,186.61,2.6794]
[1736519831084,38.27864484,186.71,186.55,31.91864484]
[1736519831587,31.91864484,186.71,186.55,31.91864484]
[1736519831792,31.91864484,186.75,186.58,31.91864484]
[1736519831991,31.91864484,186.75,186.56,0.98469583]
[1736519832283,31.91864484,186.71,186.55,38.29864484]
[1736519832490,31.91864484,186.68,186.55,6.38]
[1736519832887,31.91864484,186.71,186.55,38.29864484]
[1736519833185,6.42,186.72,186.62,2.6793]
[1736519833377,6.42,186.72,186.58,31.91864484]
[1736519833784,34.59674484,186.71,186.63,2.6792]
[1736519833986,31.91864484,186.71,186.56,0.98466515]
[1736519834186,31.91864484,186.68,186.56,0.98466515]
[1736519834885,31.91864484,186.71,186.65,2.6789]
[1736519835290,31.91864484,186.74,186.58,31.91864484]
[1736519835792,34.59624484,186.74,186.67,2.6786]
[1736519836091,31.91864484,186.71,186.56,0.98466515]
[1736519836389,2.6778,186.73,186.67,2.6786]
[1736519836595,31.91864484,186.74,186.58,31.91864484]
[1736519836885,31.91864484,186.74,186.62,2.6792]
[1736519837089,31.91864484,186.74,186.58,31.91864484]
[1736519837288,31.91864484,186.77,186.64,31.91864484]
[1736519837483,83.46,186.88,186.65,4.8204]
[1736519837484,31.91864484,186.8,186.65,4.8204]
[1736519837692,31.91864484,186.83,186.67,31.91864484]
[1736519838089,31.91864484,186.8,186.65,4.8204]
[1736519838491,31.91864484,186.83,186.67,31.91864484]
[1736519838689,31.91864484,186.83,186.7,31.91864484]
[1736519838895,34.59494484,186.83,186.73,2.6776]
[1736519839092,31.91864484,186.77,186.65,4.8204]
[1736519839294,31.91864484,186.8,186.65,4.8204]
[1736519839497,31.91864484,186.83,186.68,31.91864484]
[1736519839690,31.91864484,186.86,186.68,31.91864484]
[1736519839891,31.91864484,186.86,186.79,2.6768]
[1736519840092,31.91864484,186.93,186.74,38.33864484]
[1736519840291,31.91864484,186.93,186.77,31.91864484]
[1736519840497,2.6759,186.87,186.81,2.6766]
[1736519840792,31.91864484,186.89,186.78,3.0838]
[1736519840997,2.6768,186.8,186.68,38.33864484]
[1736519841192,31.91864484,186.83,186.69,1.6159]
[1736519841387,31.91864484,186.8,186.69,1.6159]
[1736519841694,2.6772,186.77,186.72,2.6779]
[1736519841889,31.91864484,186.77,186.67,1.5463]
[1736519842094,31.91864484,186.84,186.62,1.5375]
[1736519842095,31.91864484,186.74,186.62,1.5375]
[1736519842695,31.91864484,186.71,186.58,3.2565]
[1736519842894,31.91864484,186.68,186.58,3.2565]
[1736519843197,31.91864484,186.68,186.58,1.6019]
[1736519843598,31.91864484,186.65,186.55,1.6546]
[1736519844097,31.91864484,186.65,186.54,1.6101]
[1736519844301,31.91864484,186.62,186.49,3.2565]
[1736519844598,31.91864484,186.59,186.49,3.2565]
[1736519844792,31.91864484,186.62,186.49,3.2565]
[1736519844990,2.6798,186.59,186.5,2.681]
[1736519845198,31.91864484,186.6,186.49,3.2565]
[1736519845501,2.6798,186.59,186.51,2.6809]
[1736519845698,31.91864484,186.6,186.49,3.2565]
[1736519846093,31.91864484,186.6,186.53,2.6806]
[1736519846398,31.91864484,186.65,186.49,3.2565]
[1736519847396,2.6797,186.6,186.53,2.6806]
[1736519847595,31.91864484,186.62,186.49,3.2565]
[1736519847798,31.91864484,186.65,186.49,3.2565]
[1736519848490,31.91864484,186.68,186.51,31.91864484]
[1736519848899,31.91864484,186.65,186.5,0.98501044]
[1736519849502,31.91864484,186.62,186.5,0.98501044]